[Event "Titled Tuesday Blitz March 08 Late 2022"]
[White "Thavandiran, Shiyam"]
[Black "Mirzoev, Azer"]
[WhiteFideId "2605058"]
[BlackFideId "13400304"]
[WhiteElo "2357"]
[BlackElo "2525"]
[Result "1/2-1/2"]
[Round "07"]
[TimeControl "180+1"]
[Date "2022.03.08"]
[WhiteClock "0:00:07"]
[BlackClock "0:00:09"]

1. e4 {[%clk 0:02:59]}  e6 {[%clk 0:03:00]} 2. d4 {[%clk 0:02:58]}  d5 {[%clk 0:03:01]} 3. exd5 {[%clk 0:02:57]}  exd5 {[%clk 0:03:01]} 4. Nf3 {[%clk 0:02:58]}  Bg4 {[%clk 0:02:59]} 5. h3 {[%clk 0:02:51]}  Bh5 {[%clk 0:02:58]} 6. Qe2+ {[%clk 0:02:45]}  Qe7 {[%clk 0:02:58]} 7. Be3 {[%clk 0:02:45]}  Nc6 {[%clk 0:02:55]} 8. Nc3 {[%clk 0:02:42]}  O-O-O {[%clk 0:02:52]} 9. O-O-O {[%clk 0:02:42]}  Nf6 {[%clk 0:02:51]} 10. Qb5 {[%clk 0:02:37]}  Qb4 {[%clk 0:02:47]} 11. g4 {[%clk 0:02:35]}  Bg6 {[%clk 0:02:45]} 12. Ne5 {[%clk 0:02:22]}  Qxb5 {[%clk 0:02:23]} 13. Bxb5 {[%clk 0:02:09]}  Nxe5 {[%clk 0:02:22]} 14. dxe5 {[%clk 0:02:09]}  Ne4 {[%clk 0:02:23]} 15. Bxa7 {[%clk 0:01:47]}  Nxc3 {[%clk 0:01:58]} 16. bxc3 {[%clk 0:01:47]}  Ba3+ {[%clk 0:01:59]} 17. Kb1 {[%clk 0:01:45]}  b6 {[%clk 0:01:55]} 18. Bc6 {[%clk 0:01:32]}  h5 {[%clk 0:01:28]} 19. f3 {[%clk 0:00:45]}  hxg4 {[%clk 0:01:06]} 20. hxg4 {[%clk 0:00:42]}  Rxh1 {[%clk 0:01:04]} 21. Rxh1 {[%clk 0:00:43]}  d4 {[%clk 0:01:03]} 22. cxd4 {[%clk 0:00:41]}  Rxd4 {[%clk 0:01:01]} 23. Rh8+ {[%clk 0:00:28]}  Rd8 {[%clk 0:01:01]} 24. Bb7+ {[%clk 0:00:28]}  Kd7 {[%clk 0:01:01]} 25. Bc6+ {[%clk 0:00:23]}  Ke7 {[%clk 0:01:00]} 26. Rxd8 {[%clk 0:00:20]}  Kxd8 {[%clk 0:01:00]} 27. f4 {[%clk 0:00:21]}  f5 {[%clk 0:00:42]} 28. gxf5 {[%clk 0:00:09]}  Bxf5 {[%clk 0:00:41]} 29. Bb5 {[%clk 0:00:08]}  Be4 {[%clk 0:00:33]} 30. Bd3 {[%clk 0:00:06]}  Bxd3 {[%clk 0:00:30]} 31. cxd3 {[%clk 0:00:07]}  Kc8 {[%clk 0:00:30]} 32. f5 {[%clk 0:00:07]}  Kb7 {[%clk 0:00:30]} 33. Bxb6 {[%clk 0:00:07]}  cxb6 {[%clk 0:00:30]} 34. f6 {[%clk 0:00:08]}  gxf6 {[%clk 0:00:29]} 35. exf6 {[%clk 0:00:09]}  Kc6 {[%clk 0:00:29]} 36. Kc2 {[%clk 0:00:09]}  Bf8 {[%clk 0:00:16]} 37. Kb3 {[%clk 0:00:09]}  Kb5 {[%clk 0:00:16]} 38. d4 {[%clk 0:00:08]}  Bd6 {[%clk 0:00:15]} 39. a4+ {[%clk 0:00:07]}  Kc6 {[%clk 0:00:10]} 40. Kc4 {[%clk 0:00:07]}  Bf8 {[%clk 0:00:09]} 41. d5+ {[%clk 0:00:07]}  Kc7 {[%clk 0:00:09]} 42. Kb5 {[%clk 0:00:05]}  Bd6 {[%clk 0:00:09]} 43. f7 {[%clk 0:00:05]}  Bf8 {[%clk 0:00:09]} 44. Ka6 {[%clk 0:00:05]}  Be7 {[%clk 0:00:08]} 45. Kb5 {[%clk 0:00:05]}  Bf8 {[%clk 0:00:08]} 46. Kc4 {[%clk 0:00:06]}  Be7 {[%clk 0:00:08]} 47. Kd4 {[%clk 0:00:06]}  Kd6 {[%clk 0:00:08]} 48. Ke4 {[%clk 0:00:06]}  Bf8 {[%clk 0:00:08]} 49. Kd4 {[%clk 0:00:06]}  Bg7+ {[%clk 0:00:08]} 50. Kc4 {[%clk 0:00:07]}  Bf8 {[%clk 0:00:09]} 51. Kb5 {[%clk 0:00:07]}  Kc7 {[%clk 0:00:09]} 1/2-1/2


[Site "https://www.chess.com"]

[Event "Titled Tuesday Blitz March 08 Late 2022"]
[White "Tristan, Leonardo"]
[Black "Suarez Uriel, Adrian"]
[WhiteFideId "113816"]
[BlackFideId "22230874"]
[WhiteElo "2404"]
[BlackElo "2316"]
[Result "0-1"]
[Round "07"]
[TimeControl "180+1"]
[Date "2022.03.08"]
[WhiteClock "0:02:28"]
[BlackClock "0:02:29"]

1. e4 {[%clk 0:03:00]}  c5 {[%clk 0:02:53]} 2. Nc3 {[%clk 0:03:00]}  Nc6 {[%clk 0:02:51]} 3. Bb5 {[%clk 0:03:00]}  Nd4 {[%clk 0:02:50]} 4. Nf3 {[%clk 0:03:00]}  e6 {[%clk 0:02:50]} 5. O-O {[%clk 0:02:55]}  a6 {[%clk 0:02:47]} 6. Bd3 {[%clk 0:02:54]}  b5 {[%clk 0:02:41]} 7. Nxd4 {[%clk 0:02:52]}  cxd4 {[%clk 0:02:42]} 8. Ne2 {[%clk 0:02:53]}  Bc5 {[%clk 0:02:42]} 9. b4 {[%clk 0:02:51]}  Bb6 {[%clk 0:02:41]} 10. Bb2 {[%clk 0:02:50]}  e5 {[%clk 0:02:39]} 11. f4 {[%clk 0:02:49]}  d6 {[%clk 0:02:39]} 12. fxe5 {[%clk 0:02:43]}  dxe5 {[%clk 0:02:39]} 13. Ng3 {[%clk 0:02:44]}  Nf6 {[%clk 0:02:38]} 14. a4 {[%clk 0:02:36]}  Bd7 {[%clk 0:02:33]} 15. axb5 {[%clk 0:02:33]}  axb5 {[%clk 0:02:32]} 16. Qe2 {[%clk 0:02:31]}  O-O {[%clk 0:02:30]} 17. Bxb5 {[%clk 0:02:28]}  d3+ {[%clk 0:02:29]} 0-1


[Site "https://www.chess.com"]

[Event "Titled Tuesday Blitz March 08 Late 2022"]
[White "Vargas Pereda, Jesus Manue"]
[Black "Rudzinska, Michalina"]
[WhiteFideId "5115710"]
[BlackFideId "1172883"]
[WhiteElo "1778"]
[BlackElo "1904"]
[Result "0-1"]
[Round "07"]
[TimeControl "180+1"]
[Date "2022.03.09"]
[WhiteClock "0:00:06"]
[BlackClock "0:00:54"]

1. d4 {[%clk 0:03:00]}  f6 {[%clk 0:02:53]} 2. e4 {[%clk 0:02:50]}  e6 {[%clk 0:02:51]} 3. Nc3 {[%clk 0:02:47]}  b6 {[%clk 0:02:47]} 4. Bd3 {[%clk 0:02:42]}  Bb7 {[%clk 0:02:47]} 5. Qe2 {[%clk 0:02:41]}  Bb4 {[%clk 0:02:42]} 6. Bd2 {[%clk 0:02:40]}  d6 {[%clk 0:02:37]} 7. Nf3 {[%clk 0:02:39]}  Nd7 {[%clk 0:02:37]} 8. O-O {[%clk 0:02:38]}  Qe7 {[%clk 0:02:37]} 9. a3 {[%clk 0:02:37]}  Bxc3 {[%clk 0:02:37]} 10. Bxc3 {[%clk 0:02:36]}  g5 {[%clk 0:02:36]} 11. e5 {[%clk 0:02:27]}  dxe5 {[%clk 0:02:33]} 12. dxe5 {[%clk 0:02:27]}  f5 {[%clk 0:02:34]} 13. Bd2 {[%clk 0:02:07]}  g4 {[%clk 0:02:27]} 14. Nd4 {[%clk 0:01:56]}  O-O-O {[%clk 0:02:18]} 15. Ba6 {[%clk 0:01:55]}  Kb8 {[%clk 0:02:13]} 16. b4 {[%clk 0:01:48]}  c5 {[%clk 0:02:06]} 17. bxc5 {[%clk 0:01:39]}  Nxc5 {[%clk 0:02:06]} 18. Bxb7 {[%clk 0:01:36]}  Kxb7 {[%clk 0:02:01]} 19. Be3 {[%clk 0:01:31]}  h5 {[%clk 0:02:00]} 20. Rfb1 {[%clk 0:01:29]}  f4 {[%clk 0:01:59]} 21. a4 {[%clk 0:00:56]}  fxe3 {[%clk 0:01:56]} 22. fxe3 {[%clk 0:00:56]}  Nh6 {[%clk 0:01:43]} 23. a5 {[%clk 0:00:56]}  Nf5 {[%clk 0:01:35]} 24. axb6 {[%clk 0:00:42]}  a6 {[%clk 0:01:33]} 25. Nb5 {[%clk 0:00:37]}  Ra8 {[%clk 0:01:21]} 26. Nd6+ {[%clk 0:00:35]}  Nxd6 {[%clk 0:01:20]} 27. exd6 {[%clk 0:00:35]}  Qxd6 {[%clk 0:01:21]} 28. Rd1 {[%clk 0:00:35]}  Qe5 {[%clk 0:01:18]} 29. Ra5 {[%clk 0:00:19]}  Rhd8 {[%clk 0:01:12]} 30. Rb1 {[%clk 0:00:12]}  Rd5 {[%clk 0:01:08]} 31. c4 {[%clk 0:00:09]}  Rd6 {[%clk 0:01:04]} 32. g3 {[%clk 0:00:09]}  Rxb6 {[%clk 0:01:01]} 33. Qg2+ {[%clk 0:00:09]}  Kc7 {[%clk 0:00:59]} 34. Qxa8 {[%clk 0:00:07]}  Rxb1+ {[%clk 0:00:57]} 35. Kg2 {[%clk 0:00:07]}  Rb2+ {[%clk 0:00:53]} 36. Kg1 {[%clk 0:00:07]}  Qxe3+ {[%clk 0:00:53]} 37. Kh1 {[%clk 0:00:06]}  Qc1# {[%clk 0:00:54]} 0-1


[Site "https://www.chess.com"]

[Event "Titled Tuesday Blitz March 08 Late 2022"]
[White "Vifleemskaia, Svetlana"]
[Black "Burke, Paul"]
[WhiteFideId "4129490"]
[BlackFideId "2605767"]
[WhiteElo "1901"]
[BlackElo "1903"]
[Result "1/2-1/2"]
[Round "07"]
[TimeControl "180+1"]
[Date "2022.03.09"]
[WhiteClock "0:02:06"]
[BlackClock "0:02:20"]

1. d4 {[%clk 0:03:00]}  Nf6 {[%clk 0:02:57]} 2. c4 {[%clk 0:03:00]}  c5 {[%clk 0:02:57]} 3. d5 {[%clk 0:02:59]}  Ne4 {[%clk 0:02:57]} 4. f3 {[%clk 0:02:57]}  Qa5+ {[%clk 0:02:56]} 5. Bd2 {[%clk 0:02:55]}  Nxd2 {[%clk 0:02:56]} 6. Qxd2 {[%clk 0:02:55]}  Qxd2+ {[%clk 0:02:55]} 7. Nxd2 {[%clk 0:02:56]}  d6 {[%clk 0:02:55]} 8. e4 {[%clk 0:02:55]}  g6 {[%clk 0:02:55]} 9. Bd3 {[%clk 0:02:52]}  Bg7 {[%clk 0:02:55]} 10. O-O-O {[%clk 0:02:52]}  Na6 {[%clk 0:02:54]} 11. a3 {[%clk 0:02:51]}  O-O {[%clk 0:02:53]} 12. h4 {[%clk 0:02:51]}  h6 {[%clk 0:02:52]} 13. h5 {[%clk 0:02:50]}  g5 {[%clk 0:02:52]} 14. Ne2 {[%clk 0:02:50]}  Bd7 {[%clk 0:02:51]} 15. g4 {[%clk 0:02:49]}  Nc7 {[%clk 0:02:51]} 16. Nc3 {[%clk 0:02:47]}  a6 {[%clk 0:02:50]} 17. a4 {[%clk 0:02:46]}  b6 {[%clk 0:02:50]} 18. Ndb1 {[%clk 0:02:41]}  Rfb8 {[%clk 0:02:49]} 19. Kc2 {[%clk 0:02:32]}  b5 {[%clk 0:02:49]} 20. axb5 {[%clk 0:02:31]}  axb5 {[%clk 0:02:49]} 21. cxb5 {[%clk 0:02:29]}  Nxb5 {[%clk 0:02:48]} 22. Nxb5 {[%clk 0:02:26]}  Bxb5 {[%clk 0:02:48]} 23. Bxb5 {[%clk 0:02:26]}  Rxb5 {[%clk 0:02:48]} 24. Nc3 {[%clk 0:02:26]}  Bxc3 {[%clk 0:02:32]} 25. bxc3 {[%clk 0:02:14]}  Ra2+ {[%clk 0:02:26]} 26. Kd3 {[%clk 0:02:13]}  Rf2 {[%clk 0:02:23]} 27. Rhf1 {[%clk 0:02:12]}  Rbb2 {[%clk 0:02:23]} 28. Rxf2 {[%clk 0:02:07]}  Rxf2 {[%clk 0:02:22]} 29. Ke3 {[%clk 0:02:07]}  Rc2 {[%clk 0:02:21]} 30. Kd3 {[%clk 0:02:06]}  Rf2 {[%clk 0:02:20]} 31. Ke3 {[%clk 0:02:06]}  Rc2 {[%clk 0:02:20]} 32. Kd3 {[%clk 0:02:06]}  Rf2 {[%clk 0:02:20]} 1/2-1/2


[Site "https://www.chess.com"]

[Event "Titled Tuesday Blitz March 08 Late 2022"]
[White "Vusatiuk, Vladimir"]
[Black "Djordjevic, Vuk"]
[WhiteFideId "14118610"]
[BlackFideId "902098"]
[WhiteElo "2157"]
[BlackElo "2463"]
[Result "1-0"]
[Round "07"]
[TimeControl "180+1"]
[Date "2022.03.08"]
[WhiteClock "0:00:08"]
[BlackClock "0:00:01"]

1. d4 {[%clk 0:03:00]}  b6 {[%clk 0:03:00]} 2. e4 {[%clk 0:02:57]}  Bb7 {[%clk 0:03:00]} 3. Bd3 {[%clk 0:02:56]}  e6 {[%clk 0:03:00]} 4. Qe2 {[%clk 0:02:53]}  d5 {[%clk 0:02:59]} 5. exd5 {[%clk 0:02:46]}  Qxd5 {[%clk 0:02:58]} 6. Nf3 {[%clk 0:02:46]}  Nf6 {[%clk 0:02:58]} 7. O-O {[%clk 0:02:28]}  Nbd7 {[%clk 0:02:58]} 8. Nc3 {[%clk 0:02:24]}  Qh5 {[%clk 0:02:58]} 9. Ne4 {[%clk 0:02:16]}  Be7 {[%clk 0:02:53]} 10. h3 {[%clk 0:01:50]}  Rd8 {[%clk 0:02:22]} 11. Bg5 {[%clk 0:01:27]}  h6 {[%clk 0:02:04]} 12. Bf4 {[%clk 0:01:11]}  Rc8 {[%clk 0:01:34]} 13. Ng3 {[%clk 0:00:38]}  Bxf3 {[%clk 0:01:33]} 14. Nxh5 {[%clk 0:00:36]}  Bxe2 {[%clk 0:01:33]} 15. Nxf6+ {[%clk 0:00:31]}  Bxf6 {[%clk 0:01:32]} 16. Bxe2 {[%clk 0:00:31]}  g5 {[%clk 0:00:48]} 17. Ba6 {[%clk 0:00:28]}  Ra8 {[%clk 0:00:35]} 18. Bxc7 {[%clk 0:00:26]}  Ke7 {[%clk 0:00:31]} 19. c3 {[%clk 0:00:24]}  h5 {[%clk 0:00:29]} 20. Rfe1 {[%clk 0:00:23]}  g4 {[%clk 0:00:28]} 21. hxg4 {[%clk 0:00:19]}  hxg4 {[%clk 0:00:28]} 22. d5 {[%clk 0:00:17]}  Rag8 {[%clk 0:00:13]} 23. dxe6 {[%clk 0:00:14]}  fxe6 {[%clk 0:00:12]} 24. Bc4 {[%clk 0:00:15]}  Nf8 {[%clk 0:00:10]} 25. Rad1 {[%clk 0:00:15]}  Rg6 {[%clk 0:00:06]} 26. Bd6+ {[%clk 0:00:15]}  Kf7 {[%clk 0:00:05]} 27. Bxf8 {[%clk 0:00:15]}  Rxf8 {[%clk 0:00:05]} 28. Rxe6 {[%clk 0:00:14]}  Kg7 {[%clk 0:00:05]} 29. Rd7+ {[%clk 0:00:13]}  Kh6 {[%clk 0:00:05]} 30. Rxa7 {[%clk 0:00:12]}  Rd8 {[%clk 0:00:02]} 31. Kf1 {[%clk 0:00:10]}  Rd1+ {[%clk 0:00:02]} 32. Ke2 {[%clk 0:00:09]}  Rb1 {[%clk 0:00:03]} 33. Rxb6 {[%clk 0:00:09]}  Rc1 {[%clk 0:00:01]} 34. Bd3 {[%clk 0:00:08]} 1-0


[Site "https://www.chess.com"]

[Event "Titled Tuesday Blitz March 08 Late 2022"]
[White "Wartiovaara, Oliver"]
[Black "Moral Garcia, Serafin"]
[WhiteFideId "513024"]
[BlackFideId "2201925"]
[WhiteElo "1971"]
[BlackElo "2228"]
[Result "0-1"]
[Round "07"]
[TimeControl "180+1"]
[Date "2022.03.09"]
[WhiteClock "0:01:45"]
[BlackClock "0:02:20"]

1. e4 {[%clk 0:03:00]}  e5 {[%clk 0:02:59]} 2. h3 {[%clk 0:03:01]}  Nf6 {[%clk 0:02:57]} 3. Nc3 {[%clk 0:02:59]}  Bb4 {[%clk 0:02:55]} 4. a3 {[%clk 0:02:50]}  Bxc3 {[%clk 0:02:54]} 5. dxc3 {[%clk 0:02:50]}  O-O {[%clk 0:02:54]} 6. Bd3 {[%clk 0:02:41]}  d5 {[%clk 0:02:52]} 7. exd5 {[%clk 0:02:40]}  Qxd5 {[%clk 0:02:52]} 8. f3 {[%clk 0:02:26]}  Be6 {[%clk 0:02:50]} 9. Be3 {[%clk 0:02:20]}  Nbd7 {[%clk 0:02:49]} 10. Ne2 {[%clk 0:02:20]}  Qc6 {[%clk 0:02:47]} 11. O-O {[%clk 0:02:01]}  Rad8 {[%clk 0:02:45]} 12. Qe1 {[%clk 0:02:01]}  Nc5 {[%clk 0:02:44]} 13. Rd1 {[%clk 0:01:58]}  Rd7 {[%clk 0:02:41]} 14. Qf2 {[%clk 0:01:58]}  Nxd3 {[%clk 0:02:39]} 15. cxd3 {[%clk 0:01:59]}  Rfd8 {[%clk 0:02:38]} 16. d4 {[%clk 0:01:58]}  Bc4 {[%clk 0:02:31]} 17. Rd2 {[%clk 0:01:51]}  e4 {[%clk 0:02:26]} 18. Qg3 {[%clk 0:01:44]}  exf3 {[%clk 0:02:21]} 19. Rxf3 {[%clk 0:01:45]}  Ne4 {[%clk 0:02:20]} 0-1


[Site "https://www.chess.com"]

[Event "Titled Tuesday Blitz March 08 Late 2022"]
[White "Zhurbinsky, David"]
[Black "Dilmukhametov, Artur"]
[WhiteFideId "2072904"]
[BlackFideId "24179922"]
[WhiteElo "2547"]
[BlackElo "2237"]
[Result "0-1"]
[Round "07"]
[TimeControl "180+1"]
[Date "2022.03.09"]
[WhiteClock "0:00:01"]
[BlackClock "0:00:24"]

1. e4 {[%clk 0:03:00]}  e6 {[%clk 0:02:56]} 2. d4 {[%clk 0:03:00]}  d5 {[%clk 0:02:56]} 3. Nc3 {[%clk 0:03:00]}  Bb4 {[%clk 0:02:55]} 4. e5 {[%clk 0:03:00]}  c5 {[%clk 0:02:55]} 5. a3 {[%clk 0:03:00]}  Ba5 {[%clk 0:02:55]} 6. f4 {[%clk 0:03:00]}  Ne7 {[%clk 0:02:54]} 7. Nf3 {[%clk 0:03:00]}  Nbc6 {[%clk 0:02:43]} 8. Be3 {[%clk 0:02:53]}  Nf5 {[%clk 0:02:42]} 9. Bf2 {[%clk 0:02:51]}  cxd4 {[%clk 0:02:43]} 10. Nxd4 {[%clk 0:02:48]}  Ncxd4 {[%clk 0:02:39]} 11. Bxd4 {[%clk 0:02:48]}  Nxd4 {[%clk 0:02:35]} 12. Qxd4 {[%clk 0:02:48]}  Bb6 {[%clk 0:02:35]} 13. Qd2 {[%clk 0:02:46]}  Bd7 {[%clk 0:02:27]} 14. Bd3 {[%clk 0:02:42]}  Qh4+ {[%clk 0:02:20]} 15. g3 {[%clk 0:02:40]}  Qh5 {[%clk 0:02:18]} 16. Be2 {[%clk 0:02:29]}  Qh6 {[%clk 0:02:17]} 17. O-O-O {[%clk 0:02:22]}  Rc8 {[%clk 0:02:17]} 18. Bb5 {[%clk 0:02:02]}  Bxb5 {[%clk 0:02:07]} 19. Nxb5 {[%clk 0:02:02]}  O-O {[%clk 0:02:07]} 20. g4 {[%clk 0:01:51]}  Qh3 {[%clk 0:02:03]} 21. Kb1 {[%clk 0:00:53]}  Qxg4 {[%clk 0:01:57]} 22. Nd6 {[%clk 0:00:51]}  Rc7 {[%clk 0:01:54]} 23. h4 {[%clk 0:00:51]}  Bc5 {[%clk 0:01:51]} 24. Nb5 {[%clk 0:00:50]}  Rc6 {[%clk 0:01:51]} 25. h5 {[%clk 0:00:50]}  h6 {[%clk 0:01:51]} 26. Rh2 {[%clk 0:00:47]}  Rfc8 {[%clk 0:01:35]} 27. Rf1 {[%clk 0:00:30]}  a6 {[%clk 0:01:35]} 28. Nc3 {[%clk 0:00:29]}  Bxa3 {[%clk 0:01:34]} 29. Rg2 {[%clk 0:00:21]}  Qxh5 {[%clk 0:01:29]} 30. f5 {[%clk 0:00:20]}  Bf8 {[%clk 0:00:56]} 31. f6 {[%clk 0:00:10]}  g6 {[%clk 0:00:53]} 32. Qe3 {[%clk 0:00:08]}  Rc4 {[%clk 0:00:40]} 33. Rfg1 {[%clk 0:00:08]}  Kh7 {[%clk 0:00:39]} 34. Nd1 {[%clk 0:00:05]}  Bc5 {[%clk 0:00:37]} 35. Qg3 {[%clk 0:00:01]}  Bxg1 {[%clk 0:00:37]} 36. Rxg1 {[%clk 0:00:02]}  Rxc2 {[%clk 0:00:37]} 37. Ne3 {[%clk 0:00:02]}  Re2 {[%clk 0:00:30]} 38. Nd1 {[%clk 0:00:01]}  Qf5+ {[%clk 0:00:27]} 39. Qd3 {[%clk 0:00:01]}  Qxd3+ {[%clk 0:00:27]} 40. Ka1 {[%clk 0:00:02]}  Rc1+ {[%clk 0:00:25]} 41. Ka2 {[%clk 0:00:02]}  Rxd1 {[%clk 0:00:26]} 42. Rg4 {[%clk 0:00:01]}  Rxb2+ {[%clk 0:00:24]} 43. Kxb2 {[%clk 0:00:01]}  Rb1+ {[%clk 0:00:24]} 0-1


[Site "https://www.chess.com"]

[Event "Titled Tuesday Blitz March 08 Late 2022"]
[White "Ardila, Oscar Humberto"]
[Black "Vifleemskaia, Svetlana"]
[WhiteFideId "4404742"]
[BlackFideId "4129490"]
[WhiteElo "1966"]
[BlackElo "1901"]
[Result "1/2-1/2"]
[Round "08"]
[TimeControl "180+1"]
[Date "2022.03.09"]
[WhiteClock "0:00:04"]
[BlackClock "0:00:04"]

1. d4 {[%clk 0:03:00]}  Nf6 {[%clk 0:02:58]} 2. c4 {[%clk 0:02:53]}  e6 {[%clk 0:02:57]} 3. Nc3 {[%clk 0:02:53]}  Bb4 {[%clk 0:02:57]} 4. Bd2 {[%clk 0:02:54]}  O-O {[%clk 0:02:56]} 5. Nf3 {[%clk 0:02:53]}  b6 {[%clk 0:02:56]} 6. e3 {[%clk 0:02:53]}  Bb7 {[%clk 0:02:55]} 7. Be2 {[%clk 0:02:54]}  d6 {[%clk 0:02:55]} 8. O-O {[%clk 0:02:54]}  Nbd7 {[%clk 0:02:54]} 9. Rc1 {[%clk 0:02:53]}  a5 {[%clk 0:02:52]} 10. Qc2 {[%clk 0:02:46]}  Qe7 {[%clk 0:02:42]} 11. h3 {[%clk 0:02:35]}  Bxc3 {[%clk 0:02:39]} 12. Bxc3 {[%clk 0:02:35]}  Ne4 {[%clk 0:02:39]} 13. Be1 {[%clk 0:02:35]}  f5 {[%clk 0:02:39]} 14. Nd2 {[%clk 0:02:34]}  Ndf6 {[%clk 0:02:34]} 15. Nxe4 {[%clk 0:02:34]}  Bxe4 {[%clk 0:02:31]} 16. Bd3 {[%clk 0:02:30]}  c5 {[%clk 0:02:29]} 17. Bc3 {[%clk 0:02:15]}  Bxd3 {[%clk 0:02:22]} 18. Qxd3 {[%clk 0:02:15]}  Ne4 {[%clk 0:02:23]} 19. Be1 {[%clk 0:02:15]}  a4 {[%clk 0:02:05]} 20. f3 {[%clk 0:02:14]}  Nf6 {[%clk 0:02:05]} 21. d5 {[%clk 0:01:55]}  e5 {[%clk 0:01:54]} 22. Qxf5 {[%clk 0:01:50]}  Nxd5 {[%clk 0:01:52]} 23. Qd3 {[%clk 0:01:50]}  Nf6 {[%clk 0:01:48]} 24. Rd1 {[%clk 0:01:44]}  Rfd8 {[%clk 0:01:44]} 25. Bh4 {[%clk 0:01:36]}  Qe6 {[%clk 0:01:38]} 26. Bxf6 {[%clk 0:01:34]}  gxf6 {[%clk 0:01:32]} 27. e4 {[%clk 0:01:33]}  Ra7 {[%clk 0:01:29]} 28. b3 {[%clk 0:01:25]}  a3 {[%clk 0:01:19]} 29. Qe3 {[%clk 0:01:21]}  Rg7 {[%clk 0:01:17]} 30. Kh2 {[%clk 0:01:19]}  f5 {[%clk 0:01:14]} 31. exf5 {[%clk 0:01:00]}  Qxf5 {[%clk 0:01:13]} 32. Qe4 {[%clk 0:00:51]}  Qxe4 {[%clk 0:00:57]} 33. fxe4 {[%clk 0:00:50]}  Rf7 {[%clk 0:00:57]} 34. Kg3 {[%clk 0:00:34]}  Kf8 {[%clk 0:00:45]} 35. Rxf7+ {[%clk 0:00:28]}  Kxf7 {[%clk 0:00:45]} 36. Kg4 {[%clk 0:00:27]}  Ke6 {[%clk 0:00:42]} 37. Kf3 {[%clk 0:00:27]}  Rf8+ {[%clk 0:00:40]} 38. Ke3 {[%clk 0:00:28]}  h5 {[%clk 0:00:39]} 39. g4 {[%clk 0:00:26]}  hxg4 {[%clk 0:00:29]} 40. hxg4 {[%clk 0:00:27]}  Rg8 {[%clk 0:00:26]} 41. Rg1 {[%clk 0:00:26]}  Kf6 {[%clk 0:00:26]} 42. Kf3 {[%clk 0:00:23]}  Kg5 {[%clk 0:00:26]} 43. Kg3 {[%clk 0:00:23]}  Rf8 {[%clk 0:00:22]} 44. Rd1 {[%clk 0:00:23]}  Rf6 {[%clk 0:00:14]} 45. Rd2 {[%clk 0:00:21]}  Rf4 {[%clk 0:00:13]} 46. Rxd6 {[%clk 0:00:20]}  Rxe4 {[%clk 0:00:13]} 47. Rxb6 {[%clk 0:00:16]}  Rxg4+ {[%clk 0:00:13]} 48. Kf3 {[%clk 0:00:17]}  Rd4 {[%clk 0:00:13]} 49. Rb5 {[%clk 0:00:16]}  Rd2 {[%clk 0:00:11]} 50. Rxc5 {[%clk 0:00:16]}  Kf5 {[%clk 0:00:11]} 51. Ra5 {[%clk 0:00:15]}  Rxa2 {[%clk 0:00:11]} 52. Ke3 {[%clk 0:00:16]}  Ra1 {[%clk 0:00:10]} 53. Kd2 {[%clk 0:00:09]}  a2 {[%clk 0:00:10]} 54. Kc2 {[%clk 0:00:09]}  Ke4 {[%clk 0:00:05]} 55. Kb2 {[%clk 0:00:10]}  Re1 {[%clk 0:00:05]} 56. Kxa2 {[%clk 0:00:09]}  Kd4 {[%clk 0:00:05]} 57. Kb2 {[%clk 0:00:07]}  e4 {[%clk 0:00:05]} 58. Rd5+ {[%clk 0:00:07]}  Ke3 {[%clk 0:00:05]} 59. Kc3 {[%clk 0:00:07]}  Rc1+ {[%clk 0:00:05]} 60. Kb4 {[%clk 0:00:07]}  Rb1 {[%clk 0:00:05]} 61. c5 {[%clk 0:00:07]}  Kf4 {[%clk 0:00:05]} 62. c6 {[%clk 0:00:05]}  e3 {[%clk 0:00:05]} 63. Rd8 {[%clk 0:00:05]}  e2 {[%clk 0:00:05]} 64. Re8 {[%clk 0:00:05]}  e1=Q+ {[%clk 0:00:05]} 65. Rxe1 {[%clk 0:00:05]}  Rxe1 {[%clk 0:00:06]} 66. Kc5 {[%clk 0:00:05]}  Rc1+ {[%clk 0:00:06]} 67. Kb6 {[%clk 0:00:05]}  Ke4 {[%clk 0:00:06]} 68. c7 {[%clk 0:00:05]}  Kd4 {[%clk 0:00:05]} 69. Kb7 {[%clk 0:00:06]}  Rc5 {[%clk 0:00:04]} 70. b4 {[%clk 0:00:04]}  Rxc7+ {[%clk 0:00:03]} 71. Kxc7 {[%clk 0:00:04]}  Kc4 {[%clk 0:00:04]} 72. b5 {[%clk 0:00:04]}  Kxb5 {[%clk 0:00:04]} 1/2-1/2


[Site "https://www.chess.com"]